Cogmind - Beta 14 @@@ ROGUE MODE // 2024.08.08 @ 20:43:18 Player: Bert Result: Self-destructed Performance ------------- Evolutions (1) 500 Regions Visited (3) 600 Robots Destroyed (13) 65 Value Destroyed (382) 382 Prototype IDs (3) 60 Alien Tech Used (0) 0 Bonus (0) 0 TOTAL SCORE: 1607 Bonus ------- None Cogmind --------- Core Integrity 340/400 Matter 292/300 Energy 250/250 System Corruption 0% Temperature Cool (0) Movement Walking (190) Ox1 Location -9/Materials Parts ------- > --- POWER (1) -------- Ion Engine > --- PROPULSION (2) --- Aluminum Leg Aluminum Leg > --- UTILITY (4) ------ Heat Sink Large Storage Unit Signal Interpreter > --- WEAPON (2) ------- Advanced Beam Cannon Assault Rifle > --- INVENTORY (15) --- Light Ion Engine Improved Aluminum Leg Improved Aluminum Leg Improved Aluminum Leg Small Storage Unit Medium Storage Unit Weight Redist. System ECM Suite Shield Generator Light Assault Rifle Blade Trap Blade Trap Blade Trap Peak State ------------ > --- POWER ------------ Ion Engine > --- PROPULSION ------- Improved Aluminum Leg Improved Aluminum Leg > --- UTILITY ---------- Large Storage Unit Sensor Array Signal Interpreter ECM Suite > --- WEAPON ----------- Advanced Beam Cannon Advanced Beam Cannon > --- INVENTORY -------- Light Ion Engine Improved Aluminum Leg Heat Sink Small Storage Unit Medium Storage Unit Weight Redist. System Shield Generator Assault Rifle Light Assault Rifle Blade Trap Blade Trap Blade Trap [Rating: 16] Favorites ----------- Power Ion Engine Engine Ion Engine Propulsion Improved Aluminum Leg Leg Improved Aluminum Leg Wheel Wheel Utility Large Storage Unit Device Sensor Array Storage Large Storage Unit Processor Signal Interpreter Weapon Advanced Beam Cannon Energy Cannon Advanced Beam Cannon Ballistic Gun Assault Rifle Build | -11 -10 -10 -9 ------- Run | Yrd Mat Min Mat Slots Evolved 2 | . . . 2 Power . | . . . . Propulsion . | . . . . Utility 2 | . . . 2 Weapon . | . . . . Parts Attached 25 | 7 11 . 7 Power 2 | 1 1 . . Engine 2 | 1 1 . . Core . | . . . . Reactor . | . . . . Propulsion 9 | 2 4 . 3 Treads . | . . . . Leg 7 | . 4 . 3 Wheel 2 | 2 . . . Hover . | . . . . Flight . | . . . . Utility 8 | 1 4 . 3 Device 4 | . 2 . 2 Storage 3 | 1 2 . . Processor 1 | . . . 1 Hackware . | . . . . Protection . | . . . . Artifact . | . . . . Weapon 6 | 3 2 . 1 Energy Gun . | . . . . Energy Cannon 2 | . 2 . . Ballistic Gun 4 | 3 . . 1 Ballistic Cannon . | . . . . Launcher . | . . . . Special Weapon . | . . . . Impact Weapon . | . . . . Slashing Weapon . | . . . . Piercing Weapon . | . . . . Special Melee Weapon . | . . . . Unidentified Prototypes 1 | . 1 . . Parts Lost 2 | . . . 2 Power . | . . . . Propulsion . | . . . . Utility 1 | . . . 1 Weapon 1 | . . . 1 Highest Loss Streak 1 | . . . 1 To Critical Strikes . | . . . . Average Slot Usage (%) 97 | . 99 100 89 Engine 13 | . 14 14 11 Leg 25 | . 26 28 22 Device 14 | . 13 14 19 Storage 13 | . 14 14 11 Processor 2 | . . . 9 Energy Cannon 18 | . 16 28 14 Ballistic Gun 6 | . 11 . 1 Peak Build Rating 16 | 6 15 14 16 Average Rating 12 | 4 12 14 12 On Entrance 8 | . 6 14 14 Naked Turns . | . . . . Heaviest Build 36 | 12 34 34 36 Greatest Support 32 | 26 32 26 26 Greatest Overweight (x) 1 | . 1 1 1 Average Overweight (x) . | . . 1 1 Largest Inventory Capacity 15 | 8 15 15 15 Average Capacity 12 | 7 10 15 15 Most Carried 14 | 2 11 14 14 Average Carried 9 | 1 8 12 13 Final Capacity 15 | 8 15 15 15 Final Carried 14 | 2 11 14 13 Class Distribution -------------------- 100% | Mutant Dominant Class ---------------- Mutant | -10/Materials Mutant | -10/Mines Mutant | -9/Materials Resources | -11 -10 -10 -9 ----------- Run | Yrd Mat Min Mat Matter Collected 501 | 218 155 46 82 Remotely . | . . . . Salvage Created 516 | . 225 68 223 Parts 24 | . 13 . 11 Haulers Intercepted . | . . . . Recyclers Shooed . | . . . . Parts Field Recycled . | . . . . Retrieved Matter . | . . . . Parts Self-Destructed . | . . . . Prevented . | . . . . Kills | -11 -10 -10 -9 ------- Run | Yrd Mat Min Mat Combat Hostiles Destroyed 10 | . 3 3 4 Guns 3 | . 2 . 1 Cannons 5 | . . 2 3 Classes Destroyed 8 | . 3 2 3 Worker 1 | . . . 1 Builder 2 | . 2 . . Operator 1 | . . . 1 Watcher 1 | . 1 . . Grunt 5 | . 3 . 2 Sentry 2 | . . . 2 Demolisher 1 | . . 1 . Assembled 2 | . . 2 . Best Kill Streak 4 | . 4 1 3 Combat Bots Only 2 | . 2 1 2 Max Kills in Single Turn 1 | . 1 1 1 Gunslinging . | . . . . Exploded . | . . . . Melee . | . . . . Uniques/NPCs Destroyed . | . . . . Combat | -11 -10 -10 -9 -------- Run | Yrd Mat Min Mat Hostile Shots Fired 71 | . 19 18 34 Missed 16 | . 2 5 9 Damage Taken 840 | . 223 248 369 Core 133 | . 57 16 60 Absorbed by Shields . | . . . . Core Remaining (%) 85 | 100 . 70 . Volleys Fired 41 | . 17 5 19 Largest 2 | . 2 2 2 Hottest 136 | . 136 136 136 Shots Fired 76 | . 34 10 32 Gun 23 | . 13 . 10 Cannon 53 | . 21 10 22 Launcher . | . . . . Special . | . . . . Kinetic 23 | . 13 . 10 Thermal 53 | . 21 10 22 Explosive . | . . . . Electromagnetic . | . . . . Robot Hit Streak 11 | . 7 2 11 Robot Miss Streak 2 | . 2 2 2 Penetration Max . | . . . . Secondary Targets . | . . . . Shots Hit Robots 49 | . 24 4 21 Core Hits 18 | . 8 2 8 Critical Kills 3 | . 2 1 . Critical Parts Destroyed . | . . . . Critical Strikes 3 | . 2 1 . Meltdown 2 | . 1 1 . Destroy 1 | . 1 . . Melee Attacks . | . . . . Impact . | . . . . Slashing . | . . . . Piercing . | . . . . Sneak Attacks . | . . . . Combat Hostiles . | . . . . Follow-up Attacks . | . . . . Damage Inflicted 866 | . 405 81 380 Guns 253 | . 160 . 93 Cannons 613 | . 245 81 287 Explosions . | . . . . Melee . | . . . . Ramming . | . . . . Kinetic 253 | . 160 . 93 Thermal 613 | . 245 81 287 Explosive . | . . . . Electromagnetic . | . . . . Impact . | . . . . Slashing . | . . . . Piercing . | . . . . Highest Corruption . | . . . . Average Corruption . | . . . . Corruption Purged . | . . . . Corruption Blocked . | . . . . Overload Shots . | . . . . Overflow Damage . | . . . . Projectiles . | . . . . Explosions . | . . . . Melee . | . . . . Knockbacks . | . . . . Impact . | . . . . Kinetic . | . . . . Secondary . | . . . . Self-Inflicted Damage . | . . . . Shots . | . . . . Rammed . | . . . . Targets Rammed . | . . . . Kicked . | . . . . Crushed . | . . . . Highest Temperature 345 | . 345 150 224 Average Temperature 102 | . 130 71 75 Received Heat Transfer 309 | . 126 12 171 Siege Activations . | . . . . Robots Corrupted . | . . . . Combat Hostiles . | . . . . Parts Fried . | . . . . Impact Corruptions . | . . . . Robots Melted 2 | . 1 1 . Combat Hostiles 2 | . 1 1 . Parts Melted 6 | . 2 2 2 Heat Transferred 1110 | . 444 148 518 Parts Sabotaged . | . . . . Parts Stolen . | . . . . Parts Stripped . | . . . . Power Chain Reactions . | . . . . Alert | -11 -10 -10 -9 ------- Run | Yrd Mat Min Mat Peak Influence 158 | . 125 32 158 Initial 12 | . . 2 12 Average 38 | . 39 26 54 Maximum Alert Level . | . . . . Low Security (%) 100 | 100 100 100 100 Level 1 . | . . . . Level 2 . | . . . . Level 3 . | . . . . Level 4 . | . . . . Level 5 . | . . . . High Security . | . . . . Max Security . | . . . . Squads Dispatched 2 | . 1 . 1 Investigation . | . . . . Extermination . | . . . . Reinforcement 2 | . 1 . 1 Assault . | . . . . Garrison . | . . . . Intercept . | . . . . Searches Triggered . | . . . . Construction Impeded . | . . . . Haulers Reinforced . | . . . . Active Scanning Responses . | . . . . Cargo Convoy Interrupts . | . . . . Stealth | -11 -10 -10 -9 --------- Run | Yrd Mat Min Mat Distress Signals . | . . . . Communications Jammed . | . . . . Distress Signals . | . . . . Times Spotted 31 | . 5 19 7 Peak Tracking Total 17 | . 2 17 3 Tactical Retreats 3 | . . 3 . Traps | -11 -10 -10 -9 ------- Run | Yrd Mat Min Mat Traps Triggered . | . . . . Indirectly . | . . . . Trap Hack Attempts . | . . . . Triggered . | . . . . Disarmed . | . . . . Reprogrammed . | . . . . Reused . | . . . . Traps Extracted . | . . . . Installed . | . . . . Triggered . | . . . . Most Traps Carried 3 | . . 3 3 Machines | -11 -10 -10 -9 ---------- Run | Yrd Mat Min Mat Machines Disabled . | . . . . Max in Single Turn . | . . . . Machines Repaired . | . . . . Machines Dismantled . | . . . . Machines Sabotaged . | . . . . Overloaded Fab Kills . | . . . . Hacking | -11 -10 -10 -9 --------- Run | Yrd Mat Min Mat Machines Accessed 5 | . 3 . 2 Terminals 5 | . 3 . 2 Fabricators . | . . . . Repair Stations . | . . . . Recycling Units . | . . . . Scanalyzers . | . . . . Garrison Access . | . . . . Total Hacks 9 | . 5 . 4 Successful 5 | . 3 . 2 Failed 4 | . 2 . 2 Catastrophic . | . . . . Database Lockouts . | . . . . Manual . | . . . . Terminals 9 | . 5 . 4 Fabricators . | . . . . Repair Stations . | . . . . Recycling Units . | . . . . Scanalyzers . | . . . . Garrison Access . | . . . . Terminal Hacks 5 | . 3 . 2 Record 1 | . 1 . . Prototype ID Bank 1 | . . . 1 Dispatch Records 1 | . 1 . . Hauler Manifests 1 | . . . 1 Zone Layout 1 | . 1 . . Fabricator Hacks . | . . . . Repair Station Hacks . | . . . . Recycling Unit Hacks . | . . . . Scanalyzer . | . . . . Garrison Access Hacks . | . . . . Unauthorized Hacks . | . . . . Terminals . | . . . . Fabricators . | . . . . Repair Stations . | . . . . Recycling Units . | . . . . Scanalyzers . | . . . . Garrison Access . | . . . . Data Cores Recovered 1 | . . . 1 Used 1 | . . . 1 Hacking Detections 2 | . 1 . 1 Full Trace Events . | . . . . Feedback Events . | . . . . Feedback Blocked . | . . . . Robot Schematics Acquired . | . . . . Robots Built . | . . . . Authchips . | . . . . Time . | . . . . Total Robot Build Rating . | . . . . Part Schematics Acquired . | . . . . Parts Built . | . . . . Authchips . | . . . . Time . | . . . . Total Part Build Rating . | . . . . Parts Repaired . | . . . . Time . | . . . . Parts Recycled . | . . . . Recycled Matter . | . . . . Retrieved Matter . | . . . . Retrieved Components . | . . . . Parts Scanalyzed . | . . . . Part Schematics Acquired . | . . . . Parts Damaged . | . . . . Bothacking | -11 -10 -10 -9 ------------ Run | Yrd Mat Min Mat Used RIF Installer . | . . . . Robots Hacked . | . . . . Non-combat . | . . . . Combat . | . . . . Robot Hacks Applied . | . . . . Relay Couplers Released . | . . . . Fabnet Peak Effective % . | . . . . Robots Rewired . | . . . . Allies Hacked . | . . . . Hacks Repelled . | . . . . Allies | -11 -10 -10 -9 -------- Run | Yrd Mat Min Mat Total Allies . | . . . . Largest Group . | . . . . Highest-Rated Group . | . . . . Highest-Rated Ally . | . . . . Total Orders . | . . . . Ally Attacks . | . . . . Total Damage . | . . . . Kills . | . . . . Allies Corrupted . | . . . . Allies Melted . | . . . . Intel | -11 -10 -10 -9 ------- Run | Yrd Mat Min Mat Robot Analysis Total . | . . . . Derelict Logs Recovered . | . . . . Drone Launches . | . . . . Drone Recoveries . | . . . . Exploration | -11 -10 -10 -9 ------------- Run | Yrd Mat Min Mat Turns Passed 1005 | 45 570 189 201 Spaces Moved 519 | 38 317 91 73 Core 4 | 4 . . . Treads . | . . . . Legs 457 | . 293 91 73 Wheels 58 | 34 24 . . Hover . | . . . . Flight . | . . . . Fastest Speed 50 | 50 90 190 190 Average Speed 151 | 85 139 190 190 Slowest Speed 190 | 90 190 190 190 Overloaded Moves . | . . . . Propulsion Burnouts . | . . . . Robots Hopped . | . . . . Cave-ins Triggered . | . . . . Exploration Rate (%) 19 | 3 39 24 12 Regions Visited 3 Branch Regions 1 Pre-discovered Areas . | . . . . Known Exits Taken . | . . . . Unknown Exits Taken 3 | 1 1 1 . Scrap Searched 1 | . . 1 . Spaces Dug . | . . . . Terrain Destroyed . | . . . . Melee . | . . . . Projectile . | . . . . AOE . | . . . . Terrain Rammed . | . . . . Walls Destroyed . | . . . . Machines Disabled . | . . . . Actions | -11 -10 -10 -9 --------- Run | Yrd Mat Min Mat Total 655 | 46 409 98 102 Wait 46 | . 45 . 1 Move 516 | 37 316 90 73 Hop . | . . . . Pick Up 19 | 2 14 3 . Fast Attach 8 | 6 . . 2 Attach 5 | . 2 . 3 Detach 2 | . . . 2 Swap 12 | 1 9 . 2 Drop 6 | . 6 . . Fire 41 | . 17 5 19 Melee . | . . . . Ram . | . . . . Kick . | . . . . Crush . | . . . . Escape Stasis . | . . . . Rewire . | . . . . Trap . | . . . . Miscellaneous . | . . . . Route ------- -11/Scrapyard -10/Materials -10/Mines -9/Materials History --------- Turn | Location | Event 17 | -11/Scrapyard | Discovered new exit (range 16) 46 | -11/Scrapyard | Entered Materials 314 | -10/Materials | Build established: Mutant 503 | -10/Materials | Discovered new exit (range 7) 616 | -10/Materials | Entered Mines 619 | -10/Mines | Assembled infested the area 624 | -10/Mines | Assisted by a Guerilla fighting off Assembled 716 | -10/Mines | Found a hidden stash of uninstalled traps 784 | -10/Mines | Discovered new exit (range 10) 805 | -10/Mines | Entered Materials 805 | -9/Materials | Evolved 2 slots: Utility x2 1006 | -9/Materials | Self-destructed Last Messages --------------- 00946_ K-01 Serf collects debris. 00949_ Critical hit (Burn: +37). 00950_ K-01 Serf collects debris. 00962_ Connecting with Terminal... 00963_ K-01 Serf collects debris. 00972_ K-01 Serf destroyed. 00973_ Sensor Array destroyed. 00975_ Destroyed Hover Unit. 00976_ Critical hit (Burn: +37). 00977_ O-16 Technician uses terminal to summon reinforcements. 00977_ ALERT: Hostiles spotted, dispatching reinforcements to Terminal M009. 00977_ O-16 Technician locks terminal. 00977_ A-02 Transporter destroyed. 00978_ Y-45 Defender destroyed. 00979_ Critical hit (Burn: +37). 00993_ Beam Rifle melted. 00993_ Y-45 Defender destroyed. 00996_ Acquired 57 matter. Map ----- +----------------------------------------------------+ | #?????????????????????????????????????? | | #?????????????????????????????????????? | | %%[#?????????????????????????????????????? | | +########+#####??????????????????????????????????? | | # #??????????????????????????????????? | | "" # """ #??????????????????????????????????? | | "" # """"" #??????????????????????????????????? | | # """"" #??##??????????????????????????????? | | # """"" +?? ??????????????????????????????? | | "" # """ #??# ??????????????????????????????? | | "" # = #??# #???? ??[?????????????????????? | | "" # =#??# #???? ? ?????????????????????? | | ########+##??# #???? ??????????????????????? | | #####??????# #???# #####;#???????????????????????? | | ???????????# #???# #???????????????????????? | | ????????####+##### #?????? ????????????????? | | ????????# # """ #????? ?????????????????? | | ????????# "" # """ ##### ??????????????? | | ????????# T" + """ ??????????????? | | ????????# "" # == #????????????????????? | | ????????# # [%! #????????????????????? | | ????????# """"" # """!%= #????????????????????? | | ????????# """"" # """ = #????????????????????? | | ????????# """"" #= """ #????????????????????? | | ????????# # ######???????????????? | | ????????########## @! o w ????????? | | ?????????????????###"T"#! !#######???????????????? | | ???????????????????#"""#=!!#?????????????????????? | | ???????????????????##### #?????????????????????? | | ???????????????????????# #?????????????????????? | | ???????????????????????# #?????????????????????? | | ??????????????????????? = ?????????????????????? | | ??????????????????????? =% #????????????????????? | | ?????????????????????? #????????????????????? | | ?????????????????????? #????????????????????? | | ??????????????????????# #????????????????????? | | ??????????????????????## ##????????????????????? | | ???????????????????????# #?????????????????????? | | ???????????????????????# #?????????????????????? | | ???????????????????????? #?????????????????????? | | ???????????????????????? #?????????????????????? | | ???????????????????????? ??????????????????????? | | ?????????????????????????????????????????????????? | | ?????????????????????????????????????????????????? | | ?????????????????????????????????????????????????? | | ?????????????????????????????????????????????????? | | ?????????????????????????????????????????????????? | | ?????????????????????????????????????????????????? | | ?????????????????????????????????????????????????? | | ?????????????????????????????????????????????????? | +----------------------------------------------------+ Best States ------------- Heat Dissipation 38 Energy Generation 10 Energy Capacity 250 Matter Stores 300 Matter Capacity 300 Sight Range 16 Robot Scan Range 14 Terrain Scan Density 10 ECM Strength 1 Additional Mass Support 6 Evasion (%) 55 Item Schematics ----------------- None Robot Schematics ------------------ None Fabricated ------------ Nothing Alien Tech Used ----------------- None Achievements -------------- None Challenges ------------ None Game ------ Seed FusionTachyonEngine Manual? 0 Play Time 00:18:46 Cumulative 166.3 hours Start 2024.08.07 @ 22:40:05 End 2024.08.08 @ 20:43:18 Sessions 3 Manual Loads 0 Difficulty Rogue Special Mode None Game No. 224 Rogue 224 Adventurer 0 Explorer 0 Win Type - Total 1 Types 1/0/0/0/0/0/0/0/0 Lore% 22 Gallery% 51 Achievement% 41 Wizard Run 0 Options --------- Layout 1 ASCII 0 Keyboard 1 Movement Numpad Keybinds 0 Fullscreen 1 Font 16/SmallcapsGlow Map View 55x38 Zoom Use 0% Tactical HUD 1 Map Filters NONE Filters NONE Steam 1 RUN: 3200cb6b-9fe9-4437-8306-cc408ad9e205